fUSD/lending_fUSD_20260121
["ID","MTS","AMOUNT","RATE_DAILY","PERIOD"]
[402989453,1769023841532,-1000.0,0.00017721,2]
[402989454,1769023841542,-503.17577378,0.00017721,2]
[402989455,1769023841552,-372.82575969,0.00017721,2]
[402989456,1769023841561,-406.24694652,0.00017721,2]
[402989457,1769023841571,-501.61885564,0.00017721,2]
[402989458,1769023841581,-324.68792933,0.00017721,2]
[402989459,1769023841591,-1000.0,0.00017721,2]
[402989460,1769023841601,-874.53885875,0.00017721,2]
[402989461,1769023841610,-1000.0,0.00017721,2]
[402989462,1769023841620,-1000.0,0.00017721,2]
[402989463,1769023841630,-1000.0,0.00017721,2]
[402989464,1769023841640,-1000.0,0.00017721,2]
[402989465,1769023841653,-1000.0,0.00017721,2]
[402989466,1769023841662,-1001.39035999,0.00017721,2]
[402989467,1769023841672,-552.0,0.00017721,2]
[402989468,1769023841682,-674.0,0.00017721,2]
[402989469,1769023841691,-500.0,0.00017721,2]
[402989470,1769023841701,-706.0,0.00017721,2]
[402989471,1769023841711,-921.0,0.00017721,2]
[402989472,1769023841721,-552.0,0.00017776,2]
[402989473,1769023841731,-674.0,0.00017776,2]
[402989474,1769023841740,-500.0,0.00017776,2]
[402989475,1769023841751,-706.0,0.00017776,2]
[402989476,1769023841761,-921.0,0.00017776,2]
[402989477,1769023841771,-767.51,0.00017807,2]
[402989478,1769023841781,-500.0,0.00017808,2]
[402989479,1769023841791,-501.76649484,0.00017821,2]
[402989480,1769023841801,-1000.0,0.00017821,2]
[402989481,1769023841812,-1000.0,0.00017821,2]
[402989482,1769023841821,-150.00033761,0.00017826,2]
[402989483,1769023841831,-552.0,0.00017831,2]
[402989484,1769023841842,-674.0,0.00017831,2]
[402989485,1769023841852,-397.75906052,0.00017831,2]
[402989486,1769023841862,-706.0,0.00017831,2]
[402989487,1769023841872,-921.0,0.00017831,2]
[402989488,1769023841883,-420.0,0.00017856,2]
[402989489,1769023841893,-1000.17631861,0.0001786,2]
[402989490,1769023841906,-500.0,0.00017863,2]
[402989491,1769023841917,-552.0,0.00017885,2]
[402989492,1769023841927,-674.0,0.00017885,2]
[402989493,1769023841937,-706.0,0.00017885,2]
[402989494,1769023841947,-921.0,0.00017885,2]
[402989495,1769023841957,-306.36625612,0.000179,2]
[402989496,1769023841967,-698.18995123,0.000179,2]
[402989497,1769023841976,-11274.77260044,0.000179,2]
[402989498,1769023841986,-1633.75086898,0.000179,2]
[402989499,1769023841996,-11232.46724473,0.000179,2]
[402989500,1769023842006,-500.0,0.00017918,2]
[402989501,1769023842017,-582.94432088,0.00017921,2]
[402989502,1769023842027,-552.0,0.0001794,2]
[402989503,1769023842038,-674.0,0.0001794,2]
[402989504,1769023842049,-706.0,0.0001794,2]
[402989505,1769023842059,-921.0,0.0001794,2]
[402989506,1769023842069,-1680.0,0.00017945,2]
[402989507,1769023842080,-1196.0,0.00017961,2]
[402989508,1769023842090,-1000.0,0.0001797,2]
[402989509,1769023842100,-500.0,0.0001797,2]
[402989510,1769023842110,-694.631145,0.0001797,2]
[402989511,1769023842120,-1000.0,0.0001797,2]
[402989512,1769023842131,-1321.57411122,0.0001797,2]
[402989513,1769023842142,-375.32425764,0.00017972,2]
[402989514,1769023842156,-195.0,0.00017972,2]
[402989515,1769023842167,-282.30064646,0.00017972,2]
[402989516,1769023842178,-503.51325329,0.00017972,2]
[402989517,1769023842187,-150.0,0.00017973,2]
[402989518,1769023842198,-150.0,0.00017973,2]
[402989519,1769023842209,-1438.25367169,0.0001799,2]
[402989520,1769023842219,-1438.25367169,0.0001799,2]
[402989521,1769023842229,-552.0,0.00017995,2]
[402989522,1769023842239,-674.0,0.00017995,2]
[402989523,1769023842249,-706.0,0.00017995,2]
[402989524,1769023842258,-921.0,0.00017995,2]
[402989525,1769023842268,-500.0,0.00017999,2]
[402989526,1769023842278,-500.0,0.00017999,2]
[402989527,1769023842287,-500.0,0.00017999,2]
[402989528,1769023842297,-500.0,0.00017999,2]
[402989529,1769023842307,-500.0,0.00017999,2]
[402989530,1769023842317,-500.0,0.00017999,2]
[402989531,1769023842327,-11836.50726652,0.00017999,2]
[402989532,1769023842336,-300.0,0.00017999,2]
[402989533,1769023842346,-300.0,0.00017999,2]
[402989534,1769023842355,-666.0,0.00017999,2]
[402989535,1769023842365,-150.0,0.00017999,2]
[402989536,1769023842375,-150.0,0.00017999,2]
[402989537,1769023842386,-300.0,0.00017999,2]
[402989538,1769023842396,-248.64134578,0.00017999,2]
[402989539,1769023842410,-450.0,0.00017999,2]
[402989540,1769023842420,-500.0,0.00017999,2]
[402989541,1769023842432,-400.0,0.00017999,2]
[402989542,1769023842443,-505.52164933,0.00017999,2]
[402989544,1769023842452,-500.0,0.00017999,2]
[402989546,1769023842463,-297.47648537,0.00017999,2]
[402989547,1769023842474,-500.0,0.00017999,2]
[402989548,1769023842484,-500.0,0.00017999,2]
[402989550,1769023842494,-500.0,0.00017999,2]
[402989551,1769023842504,-337.21220376,0.00017999,2]
[402989552,1769023842515,-500.0,0.00017999,2]
[402989553,1769023842525,-500.0,0.00017999,2]
[402989554,1769023842534,-500.0,0.00017999,2]
[402989555,1769023842544,-500.0,0.00017999,2]
[402989556,1769023842554,-500.0,0.00017999,2]
[402989557,1769023842563,-500.0,0.00017999,2]
[402989558,1769023842573,-500.0,0.00017999,2]
[402989560,1769023842582,-500.0,0.00017999,2]
[402989561,1769023842592,-212.92722624,0.00017999,2]
[402989562,1769023842602,-500.0,0.00017999,2]
[402989563,1769023842611,-500.0,0.00017999,2]
[402989564,1769023842621,-500.0,0.00017999,2]
[402989565,1769023842630,-340.24052841,0.00017999,2]
[402989567,1769023842640,-500.0,0.00017999,2]
[402989568,1769023842653,-500.0,0.00017999,2]
[402989569,1769023842663,-367.11093722,0.00017999,2]
[402989570,1769023842673,-500.0,0.00017999,2]
[402989571,1769023842682,-500.0,0.00017999,2]
[402989572,1769023842692,-500.0,0.00017999,2]
[402989573,1769023842701,-500.0,0.00017999,2]
[402989574,1769023842712,-500.0,0.00017999,2]
[402989575,1769023842721,-500.0,0.00017999,2]
[402989576,1769023842730,-500.0,0.00017999,2]
[402989577,1769023842740,-500.0,0.00017999,2]
[402989578,1769023842750,-500.0,0.00017999,2]
[402989579,1769023842760,-500.0,0.00017999,2]
[402989580,1769023842770,-500.0,0.00017999,2]
[402989581,1769023842779,-500.0,0.00017999,2]
[402989582,1769023842789,-500.0,0.00017999,2]
[402989583,1769023842798,-500.0,0.00017999,2]
[402989584,1769023842808,-500.0,0.00017999,2]
[402989585,1769023842817,-500.0,0.00017999,2]
[402989586,1769023842827,-500.0,0.00017999,2]
[402989587,1769023842836,-500.0,0.00017999,2]
[402989588,1769023842846,-500.0,0.00017999,2]
[402989589,1769023842855,-500.0,0.00017999,2]
[402989590,1769023842865,-537.4838896,0.00017999,2]
[402989591,1769023842875,-500.0,0.00017999,2]
[402989592,1769023842884,-500.0,0.00017999,2]
[402989593,1769023842894,-497.1957017,0.00017999,2]
[402989594,1769023842907,-500.0,0.00017999,2]
[402989595,1769023842917,-500.0,0.00017999,2]
[402989596,1769023842927,-316.55517914,0.00017999,2]
[402989597,1769023842937,-500.0,0.00017999,2]
[402989598,1769023842946,-500.0,0.00017999,2]
[402989599,1769023842956,-500.0,0.00017999,2]
[402989600,1769023842966,-261.45837621,0.00017999,2]
[402989601,1769023842976,-500.0,0.00017999,2]
[402989602,1769023842985,-500.0,0.00017999,2]
[402989603,1769023842995,-500.0,0.00017999,2]
[402989604,1769023843004,-500.0,0.00017999,2]
[402989605,1769023843014,-500.0,0.00017999,2]
[402989606,1769023843024,-500.0,0.00017999,2]
[402989607,1769023843033,-400.0,0.00017999,2]
[402989608,1769023843043,-500.0,0.00017999,2]
[402989609,1769023843053,-500.0,0.00017999,2]
[402989610,1769023843063,-500.0,0.00017999,2]
[402989611,1769023843073,-500.0,0.00017999,2]
[402989612,1769023843082,-500.0,0.00017999,2]
[402989613,1769023843092,-500.0,0.00017999,2]
[402989614,1769023843101,-500.0,0.00017999,2]
[402989615,1769023843111,-5737937.57332475,0.00018,2]
[402989617,1769023843934,-992.601,0.00018,2]
[402989618,1769023845947,-7968.61338269,0.00018,2]
[402989619,1769023845959,-6725.39,0.00018,2]
[402989620,1769023845971,-527903.55152075,0.00018,2]
[402989621,1769023845995,-919.39818052,0.00018,2]
[402989622,1769023846127,-21309.06284727,0.00018,2]
[402989624,1769023846223,-869.24,0.00018,2]
[402989625,1769023846236,-3389.19645253,0.00018,2]
[402989626,1769023846248,-1736.33370989,0.00018,2]
[402989627,1769023846281,-880.59146838,0.00018,2]
[402989628,1769023846293,-281.02262235,0.00018,2]
[402989629,1769023846304,-342.29612217,0.00018,2]
[402989632,1769023847837,-545.74415025,0.00016338,2]
[402989633,1769023847847,-808783.67181284,0.00018,2]
[402989634,1769023847861,-302.0,0.00018,2]
[402989635,1769023849559,-281.34683604,0.000179,3]
[402989636,1769023849569,-4163.05316396,0.00018,2]
[402989637,1769023849585,-5710.09464862,0.00018,2]
[402989638,1769023849596,-508.04,0.00018,2]
[402989639,1769023849640,-6000.2941275,0.00018,2]
[402989640,1769023849666,-394.245,0.00018,2]
[402989644,1769023900107,-171.8454835,0.00016012,2]
[402989645,1769023902696,-232.09640326,0.00016012,2]
[402989646,1769023904796,-330.95698179,0.00016012,2]
[402989647,1769023908860,-303.20627472,0.00016012,2]
[402989648,1769023910092,-213.26579067,0.00016012,2]
[402989649,1769023912271,-413.39555778,0.00016012,2]
[402989650,1769023915432,-274.61431748,0.00016012,2]
[402989651,1769023917596,-283.06871674,0.00016012,2]
[402989652,1769023918905,-247.47379021,0.00016012,2]
[402989653,1769023921635,-211.05668385,0.00016012,2]
[402989654,1769023921656,-89.88853144,0.00016012,2]
[402989655,1769023944232,-243.16146856,0.00016012,2]
[402989656,1769023944262,-3671.58711546,0.00016263,2]
[402989657,1769023944322,-2170.51283196,0.00016263,2]
[402989658,1769023948703,-1082.2388578,0.00016337,2]
[402989659,1769023948826,-7835.5322844,0.00016338,2]
[402989660,1769023954644,-276.5709844,0.00016338,2]
[402989661,1769023954792,-9446.8680312,0.00016338,2]
[402989662,1769024184267,-211.16229621,0.00016236,2]
[402989663,1769024184292,-31.19852951,0.00016238,2]
[402989664,1769024187491,-335.52109047,0.00016238,2]
[402989665,1769024190290,-154.97974583,0.00016238,2]
[402989666,1769024191615,-165.56161068,0.00016238,2]
[402989667,1769024250946,-10.92897478,0.00016238,2]
[402989668,1769024250981,-600.0,0.00016238,2]
[402989669,1769024251010,-300.0,0.00016238,2]
[402989670,1769024251038,-1000.0,0.00016238,2]
[402989671,1769024251066,-600.0,0.00016248,2]
[402989672,1769024251095,-406.89735905,0.00016248,2]
[402989673,1769024251125,-1200.0,0.00016262,2]
[402989674,1769024251156,-300.0,0.00016262,2]
[402989675,1769024251605,-1164.35733234,0.00016263,2]
[402989676,1769024259712,-1852.42,0.00016201,2]
[402989677,1769024259748,-6295.17,0.00016263,2]
[402989678,1769024265988,-1330.89804727,0.00016263,2]
[402989679,1769024278837,484.6815,0.00016163,2]
[402989680,1769024282908,6293.28636812,0.00016238,2]
[402989681,1769024284281,560.24603734,0.00016149,2]
[402989682,1769024286717,-939.75396266,0.00016149,2]
[402989683,1769024315650,1000.0,0.00016238,2]
[402989684,1769024409458,-316.72962692,0.00016328,2]
[402989690,1769024444399,187.82,0.00016199,2]
[402989691,1769024449160,610.91620737,0.00016238,2]
[402989693,1769024462160,158.86220082,0.00016238,2]
[402989694,1769024471237,880.624,0.00016238,2]
[402989695,1769024504051,5282.27966649,0.00016238,2]
[402989696,1769024604511,150.0,0.00016064,2]
[402989697,1769024605418,580.0,0.00016064,2]
[402989698,1769024605962,150.0,0.00016064,2]
[402989699,1769024606668,-150.0,0.00016119,2]
[402989700,1769024606691,-45.0,0.00016119,2]
[402989701,1769024607949,150.0,0.00016064,2]
[402989702,1769024608187,-280.40948795,0.00016119,2]
[402989703,1769024610323,150.0,0.00016064,2]
[402989704,1769024610832,-254.59051205,0.00016119,2]
[402989705,1769024610853,-150.0,0.00016119,2]
[402989706,1769024610875,-43.58487592,0.00016119,2]
[402989707,1769024612648,-106.41512408,0.00016119,2]
[402989708,1769024612670,-150.0,0.00016119,2]
[402989709,1769024612693,-200.0,0.00016174,2]
[402989710,1769024612715,-46.3109792,0.00016174,2]
[402989711,1769024614257,-300.0,0.00016174,2]
[402989712,1769024616455,-233.6890208,0.00016174,2]
[402989713,1769024616477,-103.37603966,0.00016174,2]
[402989714,1769024620718,-46.62396034,0.00016174,2]
[402989715,1769024620753,-150.0,0.00016174,2]
[402989716,1769024620778,-17.89975002,0.00016174,2]
[402989717,1769024655928,500.0,0.00016064,2]
[402989718,1769024656125,569.0,0.00016064,2]
[402989719,1769024656226,500.0,0.00016064,2]
[402989720,1769024656623,941.0,0.00016064,2]
[402989721,1769024656792,726.0,0.00016064,2]
[402989722,1769024656917,-245.70075882,0.00016119,2]
[402989723,1769024657943,150.0,0.00016064,2]
[402989724,1769024658485,-254.29924118,0.00016119,2]
[402989725,1769024658508,-15.39834688,0.00016119,2]
[402989726,1769024661018,-151.21241997,0.00016119,2]
[402989727,1769024662784,-152.90282489,0.00016119,2]
[402989728,1769024663955,-237.24894011,0.00016119,2]
[402989729,1769024666817,-12.23746815,0.00016119,2]
[402989730,1769024666842,-143.58337424,0.00016119,2]
[402989731,1769024670120,-159.99371674,0.00016119,2]
[402989732,1769024672271,-196.42290902,0.00016119,2]
[402989733,1769024672296,-105.19682703,0.00016119,2]
[402989734,1769024674472,150.0,0.00016064,2]
[402989735,1769024677283,-287.27718627,0.00016119,2]
[402989736,1769024679613,-180.14659575,0.00016119,2]
[402989737,1769024687455,184.0,0.00015491,2]
[402989738,1769024688713,184.0,0.00015962,2]
[402989739,1769024693823,3637.3,0.00015446,2]
[402989740,1769024718929,-173.12212116,0.00016119,2]
[402989741,1769024740531,-171.38700965,0.00016119,2]
[402989742,1769024744052,-23.87026014,0.00016119,2]
[402989743,1769024744075,-215.19509579,0.00016119,2]
[402989744,1769024746411,-510.80490421,0.00016119,2]
[402989745,1769024746431,-1200.0,0.00016173,2]
[402989746,1769024746450,-132.10024998,0.00016174,2]
[402989747,1769024746474,-500.0,0.00016174,2]
[402989748,1769024746494,-569.0,0.00016174,2]
[402989749,1769024746514,-500.0,0.00016174,2]
[402989750,1769024746534,-941.0,0.00016174,2]
[402989751,1769024746555,-726.0,0.00016174,2]
[402989752,1769024746575,-550.0,0.00016227,2]
[402989753,1769024746596,-42.88346126,0.00016228,2]
[402989754,1769024773747,150.0,0.00016064,2]
[402989755,1769024774994,250.57177377,0.00016064,2]
[402989756,1769024775160,150.0,0.00016064,2]
[402989757,1769024784925,-150.0,0.00016119,2]
[402989758,1769024784948,-15.1992319,0.00016174,2]
[402989759,1769024824359,166.66,0.00015873,2]
[402989760,1769024827150,-184.8007681,0.00016174,2]
[402989761,1769024827170,-537.11653874,0.00016228,2]
[402989762,1769024827191,-259.64382423,0.00016228,2]
[402989763,1769024827218,-239.0,0.00016228,2]
[402989764,1769024827238,-150.0,0.00016228,2]
[402989765,1769024827266,-500.0,0.00016228,2]
[402989766,1769024827287,-569.0,0.00016228,2]
[402989767,1769024827308,-500.0,0.00016228,2]
[402989768,1769024827328,-941.0,0.00016228,2]
[402989769,1769024827348,-726.0,0.00016228,2]
[402989770,1769024827368,-459.72377725,0.00016231,2]
[402989771,1769024827388,-195.0,0.00016233,2]
[402989772,1769024827409,-2629.10317515,0.00016238,2]
[402989773,1769024827430,-6281.15544101,0.00016238,2]
[402989774,1769024827451,-534.55168144,0.00016238,2]
[402989775,1769024827470,-302.06375508,0.00016238,2]
[402989776,1769024827491,-195.0,0.00016255,2]
[402989777,1769024827512,-1831.7930313,0.00016257,2]
[402989778,1769024827532,-1580.1736468,0.00016269,2]
[402989779,1769024827554,-580.0,0.00016283,2]
[402989780,1769024827573,-150.0,0.00016283,2]
[402989781,1769024827593,-500.0,0.00016283,2]
[402989782,1769024827613,-569.0,0.00016283,2]
[402989783,1769024827633,-500.0,0.00016283,2]
[402989784,1769024827653,-941.0,0.00016283,2]
[402989785,1769024827673,-726.0,0.00016283,2]
[402989786,1769024827695,-1200.0,0.00016327,2]
[402989787,1769024827714,-9999.99,0.00016328,2]
[402989788,1769024827733,-9226.45,0.00016328,2]
[402989789,1769024827754,-150.99,0.00016328,2]
[402989790,1769024827774,-768.02304485,0.00016328,2]
[402989791,1769024827800,-1193.97,0.00016328,2]
[402989792,1769024827819,-9999.99,0.00016328,2]
[402989793,1769024827837,-8515.54,0.00016328,2]
[402989794,1769024827857,-500.0,0.00016329,2]
[402989795,1769024827876,-200.0,0.00016329,2]
[402989796,1769024827896,-151.0,0.00016329,2]
[402989797,1769024827916,-151.0,0.00016329,2]
[402989798,1769024827936,-151.0,0.00016329,2]
[402989799,1769024827957,-151.0,0.00016329,2]
[402989800,1769024827976,-151.0,0.00016329,2]
[402989801,1769024827997,-151.0,0.00016329,2]
[402989802,1769024828018,-151.0,0.00016329,2]
[402989803,1769024828038,-151.0,0.00016329,2]
[402989804,1769024828062,-151.0,0.00016329,2]
[402989805,1769024828083,-151.0,0.00016329,2]
[402989806,1769024828103,-151.0,0.00016329,2]
[402989807,1769024828122,-151.0,0.00016329,2]
[402989808,1769024828142,-151.0,0.00016329,2]
[402989809,1769024828161,-200.0,0.00016329,2]
[402989810,1769024828181,-200.0,0.00016329,2]
[402989811,1769024828201,-1105.4903607,0.00016337,5]
[402989812,1769024828220,-150.0,0.00016337,2]
[402989813,1769024828241,-2110.06,0.00016337,2]
[402989814,1769024828261,-499.99,0.00016337,2]
[402989815,1769024828281,-150.99,0.00016337,2]
[402989816,1769024828301,-999.99,0.00016337,2]
[402989817,1769024828566,-370.0,0.00016337,2]
[402989818,1769024828593,-1000.0,0.00016337,2]
[402989819,1769024828615,-580.0,0.00016338,2]
[402989820,1769024828638,-250.0,0.00016338,2]
[402989821,1769024828659,-500.0,0.00016338,2]
[402989822,1769024828680,-569.0,0.00016338,2]
[402989823,1769024828701,-500.0,0.00016338,2]
[402989824,1769024828722,-941.0,0.00016338,2]
[402989825,1769024828743,-726.0,0.00016338,2]
[402989826,1769024828763,-500.0,0.00016338,2]
[402989827,1769024828782,-1455.51,0.00016338,2]
[402989828,1769024828802,-1455.51,0.00016338,2]
[402989829,1769024828821,-1455.51,0.00016338,2]
[402989830,1769024828841,-2641.237,0.00016338,2]
[402989831,1769024828861,-309.026,0.00016338,2]
[402989832,1769024828881,-500.0,0.00016338,2]
[402989833,1769024828907,-500.0,0.00016338,2]
[402989834,1769024828928,-500.0,0.00016338,2]
[402989835,1769024828950,-500.0,0.00016338,2]
[402989836,1769024828969,-500.0,0.00016338,2]
[402989837,1769024828990,-500.0,0.00016338,2]
[402989838,1769024829012,-500.0,0.00016338,2]
[402989839,1769024829032,-500.0,0.00016338,2]
[402989840,1769024829052,-500.0,0.00016338,2]
[402989841,1769024829073,-500.0,0.00016338,2]
[402989842,1769024829102,-500.0,0.00016338,2]
[402989843,1769024829125,-500.0,0.00016338,2]
[402989844,1769024829148,-500.0,0.00016338,2]
[402989845,1769024829171,-500.0,0.00016338,2]
[402989846,1769024829198,-500.0,0.00016338,2]
[402989847,1769024829228,-500.0,0.00016338,2]
[402989848,1769024829253,-500.0,0.00016338,2]
[402989849,1769024829275,-440.70075882,0.00016338,2]
[402989850,1769024829299,-585.5583357,0.00016338,2]
[402989851,1769024829321,-4105.2975,0.00016338,2]
[402989852,1769024829347,-10392.89024697,0.00016338,2]
[402989853,1769024832168,253.32,0.00015404,2]
[402989854,1769024862066,392.03,0.00015957,2]
[402989855,1769024894427,150.0,0.00015864,2]
[402989856,1769024903383,200.0,0.00015838,2]
[402989857,1769024967963,-158.86220082,0.00016174,2]
[402989858,1769024980720,5166.01131118,0.0001322,2]
[402989859,1769024980747,8451.39868882,0.0001322,2]
[402989860,1769025025207,-221.89649215,0.00016174,2]
[402989861,1769025028021,-208.3753022,0.00016174,2]
[402989862,1769025029589,-37.46092691,0.00016174,2]
[402989863,1769025029614,-182.51511997,0.00016174,2]
[402989870,1769025031876,-6937.72943756,0.00016174,2]
[402989871,1769025031886,-879.0,0.00016237,2]
[402989872,1769025031896,-300.0,0.00016237,2]
[402989873,1769025031905,-150.0,0.00016237,2]
[402989874,1769025031915,-1200.0,0.00016237,2]
[402989875,1769025031925,-82416.90049788,0.00016238,2]
[402989876,1769025031937,-3373.5194545,0.00016238,2]
[402989877,1769025031974,-7472.69945577,0.00016238,2]
[402989878,1769025031986,-564.02,0.00016238,2]
[402989879,1769025032078,-6400.0,0.00016238,2]
[402989880,1769025033526,166.66,0.0001527,2]
[402989881,1769025033720,166.66,0.00015592,2]
[402989882,1769025033869,166.66,0.00015913,2]
[402989885,1769025037903,-166.66,0.00016235,2]
[402989886,1769025037913,-313.69031088,0.00016238,2]
[402989887,1769025037925,-899459.17028097,0.00016238,2]
[402989888,1769025037934,-422.0,0.00016274,2]
[402989889,1769025037944,-150.0,0.00016274,2]
[402989890,1769025037954,-150.0,0.00016274,2]
[402989891,1769025037963,-150.0,0.00016274,2]
[402989892,1769025037973,-150.0,0.00016274,2]
[402989893,1769025037982,-150.0,0.00016274,2]
[402989894,1769025037992,-150.0,0.00016274,2]
[402989895,1769025038002,-706.0,0.00016274,2]
[402989896,1769025038012,-545.0,0.00016274,2]
[402989897,1769025038022,-500.0,0.00016274,2]
[402989898,1769025038031,-957.0,0.00016274,2]
[402989899,1769025038041,-663.18,0.00016274,2]
[402989900,1769025038050,-550.0,0.00016328,2]
[402989901,1769025038061,-500.0,0.00016329,2]
[402989902,1769025038070,-500.0,0.00016329,2]
[402989903,1769025038080,-500.0,0.00016329,2]
[402989904,1769025038089,-484.6814835,0.00016329,2]
[402989905,1769025038099,-500.0,0.00016329,2]
[402989906,1769025038109,-500.0,0.00016329,2]
[402989907,1769025038119,-500.0,0.00016329,2]
[402989908,1769025038131,-500.0,0.00016329,2]
[402989909,1769025038140,-301.69227512,0.00016329,2]
[402989910,1769025038150,-500.0,0.00016329,2]
[402989911,1769025038162,-500.0,0.00016329,2]
[402989912,1769025038172,-500.0,0.00016329,2]
[402989913,1769025038184,-500.0,0.00016329,2]
[402989915,1769025038194,-500.0,0.00016329,2]
[402989916,1769025038204,-381.39876962,0.00016329,2]
[402989917,1769025038214,-151.0,0.00016329,2]
[402989918,1769025038224,-151.0,0.00016329,2]
[402989919,1769025038234,-182.52799568,0.00016329,2]
[402989920,1769025038244,-500.0,0.00016329,2]
[402989921,1769025038254,-422.0,0.00016329,2]
[402989922,1769025038265,-150.0,0.00016329,2]
[402989923,1769025038275,-150.0,0.00016329,2]
[402989924,1769025038285,-150.0,0.00016329,2]
[402989925,1769025038295,-706.0,0.00016329,2]
[402989926,1769025038306,-545.0,0.00016329,2]
[402989927,1769025038316,-500.0,0.00016329,2]
[402989928,1769025038326,-957.0,0.00016329,2]
[402989929,1769025038336,-561.44150394,0.00016338,2]
[402989930,1769025038346,-191.8838658,0.00016338,2]
[402989931,1769025038356,-8231.2156,0.00016338,2]
[402989932,1769025038366,-500.0,0.00016338,2]
[402989933,1769025038377,-150.00059298,0.00016341,2]
[402989934,1769025038386,-422.0,0.00016384,2]
[402989935,1769025038396,-200.0,0.00016384,2]
[402989936,1769025038407,-200.0,0.00016384,2]
[402989938,1769025038417,-200.0,0.00016384,2]
[402989940,1769025038427,-706.0,0.00016384,2]
[402989942,1769025038436,-545.0,0.00016384,2]
[402989944,1769025038446,-500.0,0.00016384,2]
[402989946,1769025038455,-957.0,0.00016384,2]
[402989948,1769025038465,-166.66,0.00016397,2]
[402989950,1769025038475,-500.0,0.00016438,2]
[402989952,1769025038484,-500.0,0.00016438,2]
[402989953,1769025038494,-500.0,0.00016438,2]
[402989955,1769025038504,-500.0,0.00016438,2]
[402989958,1769025038514,-500.0,0.00016438,2]
[402989959,1769025038525,-500.0,0.00016438,2]
[402989962,1769025038536,-151.0,0.00016438,2]
[402989964,1769025038545,-422.0,0.00016438,2]
[402989966,1769025038555,-706.0,0.00016438,2]
[402989967,1769025038565,-545.0,0.00016438,2]
[402989970,1769025038574,-500.0,0.00016438,2]
[402989971,1769025038584,-957.0,0.00016438,2]
[402989973,1769025038595,-500.0,0.00016493,2]
[402989974,1769025038605,-422.0,0.00016493,2]
[402989975,1769025038615,-706.0,0.00016493,2]
[402989976,1769025038627,-545.0,0.00016493,2]
[402989977,1769025038637,-500.0,0.00016493,2]
[402989978,1769025038647,-957.0,0.00016493,2]
[402989979,1769025038657,-269.0,0.00016496,2]
[402989980,1769025038667,-302.06375503,0.00016515,2]
[402989981,1769025038676,-1191.0,0.00016529,2]
[402989982,1769025038686,-154.37435585,0.00016547,2]
[402989983,1769025038696,-357.1948729,0.00016548,2]
[402989984,1769025038705,-422.0,0.00016548,2]
[402989985,1769025038715,-706.0,0.00016548,2]
[402989986,1769025038725,-545.0,0.00016548,2]
[402989987,1769025038734,-500.0,0.00016548,2]
[402989988,1769025038746,-957.0,0.00016548,2]
[402989989,1769025038757,-663.18,0.00016548,2]
[402989990,1769025038766,-166.66,0.00016556,2]
[402989991,1769025038775,-822.0,0.00016562,2]
[402989992,1769025038786,-576.0,0.00016595,2]
[402989993,1769025038795,-306.0,0.00016599,2]
[402989994,1769025038804,-422.0,0.00016603,2]
[402989995,1769025038814,-706.0,0.00016603,2]
[402989996,1769025038826,-545.0,0.00016603,2]
[402989997,1769025038835,-500.0,0.00016603,2]